[Event "Titled Tuesday Blitz May 23 Early 2023"]
[White "Sarana, Alexey"]
[Black "TimGrutter03"]
[WhiteFideId "24133795"]
[WhiteElo "2714"]
[BlackElo "2631"]
[Result "1-0"]
[Round "02"]
[TimeControl "180+2"]
[Date "2023.05.23"]
[WhiteClock "0:00:06"]
[BlackClock "0:00:03"]

1. c4 {[%clk 0:03:00]}  g6 {[%clk 0:02:59]} 2. e4 {[%clk 0:02:58]}  Bg7 {[%clk 0:02:56]} 3. d4 {[%clk 0:02:58]}  d6 {[%clk 0:02:56]} 4. Nc3 {[%clk 0:02:57]}  Nf6 {[%clk 0:02:56]} 5. Bd3 {[%clk 0:02:56]}  Nc6 {[%clk 0:02:54]} 6. Nge2 {[%clk 0:02:56]}  e5 {[%clk 0:02:52]} 7. d5 {[%clk 0:02:55]}  Ne7 {[%clk 0:02:52]} 8. f3 {[%clk 0:02:52]}  Nd7 {[%clk 0:02:50]} 9. Be3 {[%clk 0:02:51]}  f5 {[%clk 0:02:48]} 10. Qd2 {[%clk 0:02:43]}  O-O {[%clk 0:02:45]} 11. h4 {[%clk 0:02:42]}  b6 {[%clk 0:02:39]} 12. h5 {[%clk 0:02:41]}  f4 {[%clk 0:02:37]} 13. Bf2 {[%clk 0:02:39]}  g5 {[%clk 0:02:36]} 14. h6 {[%clk 0:02:31]}  Bf6 {[%clk 0:02:36]} 15. Bc2 {[%clk 0:02:28]}  a5 {[%clk 0:02:35]} 16. Nb5 {[%clk 0:02:19]}  Nc5 {[%clk 0:02:30]} 17. Nec3 {[%clk 0:02:18]}  Kh8 {[%clk 0:02:13]} 18. a3 {[%clk 0:02:18]}  Rg8 {[%clk 0:02:10]} 19. O-O-O {[%clk 0:02:16]}  Bd7 {[%clk 0:02:02]} 20. b3 {[%clk 0:02:08]}  Rg6 {[%clk 0:01:59]} 21. Rh5 {[%clk 0:02:06]}  Rc8 {[%clk 0:01:46]} 22. Kb2 {[%clk 0:02:05]}  Qe8 {[%clk 0:01:45]} 23. Rdh1 {[%clk 0:02:04]}  Qf8 {[%clk 0:01:40]} 24. b4 {[%clk 0:02:04]}  Nb7 {[%clk 0:01:36]} 25. Ba4 {[%clk 0:01:57]}  Be8 {[%clk 0:01:26]} 26. Na7 {[%clk 0:01:49]}  Ra8 {[%clk 0:01:22]} 27. Bxe8 {[%clk 0:01:49]}  Qxe8 {[%clk 0:01:21]} 28. Nab5 {[%clk 0:01:49]}  Qd7 {[%clk 0:01:16]} 29. Kb3 {[%clk 0:01:45]}  g4 {[%clk 0:01:08]} 30. Na4 {[%clk 0:01:43]}  gxf3 {[%clk 0:01:03]} 31. gxf3 {[%clk 0:01:44]}  Rg2 {[%clk 0:01:04]} 32. Qe1 {[%clk 0:01:33]}  Rag8 {[%clk 0:00:57]} 33. R5h2 {[%clk 0:01:29]}  R8g6 {[%clk 0:00:47]} 34. Rxg2 {[%clk 0:01:28]}  Rxg2 {[%clk 0:00:48]} 35. Qf1 {[%clk 0:01:28]}  Rg6 {[%clk 0:00:48]} 36. Qd3 {[%clk 0:00:58]}  Ng8 {[%clk 0:00:41]} 37. c5 {[%clk 0:00:46]}  bxc5 {[%clk 0:00:36]} 38. bxc5 {[%clk 0:00:47]}  dxc5 {[%clk 0:00:30]} 39. Nxc5 {[%clk 0:00:46]}  Nxc5+ {[%clk 0:00:30]} 40. Bxc5 {[%clk 0:00:47]}  Be7 {[%clk 0:00:29]} 41. Bxe7 {[%clk 0:00:42]}  Qxe7 {[%clk 0:00:25]} 42. Qc3 {[%clk 0:00:37]}  a4+ {[%clk 0:00:19]} 43. Kxa4 {[%clk 0:00:35]}  Rb6 {[%clk 0:00:18]} 44. Rc1 {[%clk 0:00:19]}  Qe8 {[%clk 0:00:08]} 45. Qc5 {[%clk 0:00:19]}  Nxh6 {[%clk 0:00:07]} 46. Kb4 {[%clk 0:00:19]}  Nf7 {[%clk 0:00:06]} 47. a4 {[%clk 0:00:19]}  Nd6 {[%clk 0:00:07]} 48. Qxc7 {[%clk 0:00:10]}  Rxb5+ {[%clk 0:00:07]} 49. axb5 {[%clk 0:00:10]}  Qxb5+ {[%clk 0:00:08]} 50. Kc3 {[%clk 0:00:08]}  Qe2 {[%clk 0:00:07]} 51. Qd8+ {[%clk 0:00:06]}  Kg7 {[%clk 0:00:07]} 52. Qe7+ {[%clk 0:00:06]}  Kh6 {[%clk 0:00:02]} 53. Rh1+ {[%clk 0:00:05]}  Kg6 {[%clk 0:00:02]} 54. Rg1+ {[%clk 0:00:06]}  Kh6 {[%clk 0:00:03]} 55. Qg5# {[%clk 0:00:06]} 1-0


[Site "https://www.chess.com"]

[Event "Titled Tuesday Blitz May 23 Early 2023"]
[White "Martinez Alcantara, Jose Eduardo"]
[Black "Ambartsumova, Karina"]
[WhiteFideId "3805662"]
[BlackFideId "4166299"]
[WhiteElo "2711"]
[BlackElo "2240"]
[Result "1-0"]
[Round "02"]
[TimeControl "180+2"]
[Date "2023.05.23"]
[WhiteClock "0:00:38"]
[BlackClock "0:00:00"]

1. e4 {[%clk 0:03:00]}  e5 {[%clk 0:02:59]} 2. Nf3 {[%clk 0:03:00]}  Nc6 {[%clk 0:02:59]} 3. Bb5 {[%clk 0:03:00]}  Nf6 {[%clk 0:02:58]} 4. d3 {[%clk 0:02:56]}  d6 {[%clk 0:02:57]} 5. c3 {[%clk 0:02:55]}  Bd7 {[%clk 0:02:52]} 6. O-O {[%clk 0:02:54]}  g6 {[%clk 0:02:49]} 7. h3 {[%clk 0:02:50]}  Bg7 {[%clk 0:02:49]} 8. Be3 {[%clk 0:02:50]}  O-O {[%clk 0:02:49]} 9. Nbd2 {[%clk 0:02:51]}  Nh5 {[%clk 0:02:41]} 10. a4 {[%clk 0:02:32]}  Qe8 {[%clk 0:02:38]} 11. d4 {[%clk 0:02:26]}  Kh8 {[%clk 0:02:36]} 12. dxe5 {[%clk 0:02:26]}  dxe5 {[%clk 0:02:27]} 13. Bc4 {[%clk 0:02:17]}  b6 {[%clk 0:02:22]} 14. Re1 {[%clk 0:02:01]}  Rd8 {[%clk 0:02:17]} 15. Qc2 {[%clk 0:01:50]}  f5 {[%clk 0:02:08]} 16. Bg5 {[%clk 0:01:47]}  Nf6 {[%clk 0:02:01]} 17. Bb5 {[%clk 0:01:35]}  fxe4 {[%clk 0:01:48]} 18. Nxe4 {[%clk 0:01:27]}  Bf5 {[%clk 0:01:35]} 19. Bxf6 {[%clk 0:01:27]}  Bxf6 {[%clk 0:01:33]} 20. Qe2 {[%clk 0:01:28]}  Bg7 {[%clk 0:00:51]} 21. Qc4 {[%clk 0:01:21]}  Bd7 {[%clk 0:00:49]} 22. Rad1 {[%clk 0:01:14]}  Na5 {[%clk 0:00:34]} 23. Qxc7 {[%clk 0:01:11]}  Bxb5 {[%clk 0:00:31]} 24. Rxd8 {[%clk 0:01:06]}  Qxd8 {[%clk 0:00:32]} 25. Qxd8 {[%clk 0:01:07]}  Rxd8 {[%clk 0:00:33]} 26. axb5 {[%clk 0:01:07]}  Rd5 {[%clk 0:00:20]} 27. b4 {[%clk 0:00:56]}  Nc4 {[%clk 0:00:19]} 28. Ra1 {[%clk 0:00:56]}  Rd7 {[%clk 0:00:16]} 29. Kf1 {[%clk 0:00:56]}  Kg8 {[%clk 0:00:15]} 30. Ke2 {[%clk 0:00:57]}  h6 {[%clk 0:00:15]} 31. Nfd2 {[%clk 0:00:57]}  Nb2 {[%clk 0:00:12]} 32. g3 {[%clk 0:00:48]}  Kf7 {[%clk 0:00:11]} 33. Ra2 {[%clk 0:00:44]}  Nd3 {[%clk 0:00:11]} 34. Rc2 {[%clk 0:00:44]}  Bf8 {[%clk 0:00:09]} 35. Nb3 {[%clk 0:00:38]}  Ke6 {[%clk 0:00:00]} 36. Rd2 {[%clk 0:00:38]} 1-0


[Site "https://www.chess.com"]

[Event "Titled Tuesday Blitz May 23 Early 2023"]
[White "Filgueira, Hernan"]
[Black "Demchenko, Anton"]
[WhiteFideId "101770"]
[BlackFideId "4160258"]
[WhiteElo "2363"]
[BlackElo "2545"]
[Result "0-1"]
[Round "02"]
[TimeControl "180+2"]
[Date "2023.05.23"]
[WhiteClock "0:00:04"]
[BlackClock "0:01:10"]

1. e4 {[%clk 0:02:55]}  e5 {[%clk 0:02:58]} 2. Nf3 {[%clk 0:02:55]}  Nc6 {[%clk 0:02:59]} 3. Bb5 {[%clk 0:02:54]}  a6 {[%clk 0:02:59]} 4. Ba4 {[%clk 0:02:54]}  Nge7 {[%clk 0:02:59]} 5. c3 {[%clk 0:02:50]}  Ng6 {[%clk 0:02:59]} 6. d4 {[%clk 0:02:47]}  exd4 {[%clk 0:03:00]} 7. cxd4 {[%clk 0:02:47]}  Bb4+ {[%clk 0:03:01]} 8. Nc3 {[%clk 0:02:41]}  d5 {[%clk 0:03:01]} 9. exd5 {[%clk 0:02:37]}  Bxc3+ {[%clk 0:03:01]} 10. bxc3 {[%clk 0:02:37]}  Qxd5 {[%clk 0:03:02]} 11. h3 {[%clk 0:02:25]}  O-O {[%clk 0:02:59]} 12. O-O {[%clk 0:02:24]}  Na5 {[%clk 0:02:55]} 13. Re1 {[%clk 0:02:05]}  b5 {[%clk 0:02:45]} 14. Bc2 {[%clk 0:02:04]}  Bf5 {[%clk 0:02:44]} 15. Bxf5 {[%clk 0:01:22]}  Qxf5 {[%clk 0:02:45]} 16. a4 {[%clk 0:01:22]}  Nc4 {[%clk 0:02:41]} 17. Be3 {[%clk 0:00:57]}  c6 {[%clk 0:02:38]} 18. axb5 {[%clk 0:00:57]}  cxb5 {[%clk 0:02:33]} 19. Nd2 {[%clk 0:00:51]}  Nd6 {[%clk 0:02:24]} 20. Qg4 {[%clk 0:00:32]}  Qd5 {[%clk 0:02:09]} 21. Qf3 {[%clk 0:00:20]}  Qxf3 {[%clk 0:02:10]} 22. Nxf3 {[%clk 0:00:20]}  Rfc8 {[%clk 0:02:11]} 23. Rec1 {[%clk 0:00:18]}  Ne7 {[%clk 0:02:10]} 24. Bd2 {[%clk 0:00:12]}  Nd5 {[%clk 0:02:07]} 25. Be1 {[%clk 0:00:12]}  f6 {[%clk 0:01:50]} 26. Kf1 {[%clk 0:00:09]}  a5 {[%clk 0:01:49]} 27. g3 {[%clk 0:00:08]}  a4 {[%clk 0:01:48]} 28. Rab1 {[%clk 0:00:07]}  a3 {[%clk 0:01:45]} 29. Ra1 {[%clk 0:00:07]}  Ra4 {[%clk 0:01:45]} 30. Bd2 {[%clk 0:00:06]}  Nc4 {[%clk 0:01:38]} 31. Ke2 {[%clk 0:00:07]}  Re8+ {[%clk 0:01:26]} 32. Kf1 {[%clk 0:00:07]}  g5 {[%clk 0:01:21]} 33. Be1 {[%clk 0:00:07]}  Kf7 {[%clk 0:01:16]} 34. Ng1 {[%clk 0:00:06]}  h5 {[%clk 0:01:13]} 35. Ne2 {[%clk 0:00:06]}  h4 {[%clk 0:01:14]} 36. gxh4 {[%clk 0:00:06]}  gxh4 {[%clk 0:01:14]} 37. Ng1 {[%clk 0:00:06]}  Nf4 {[%clk 0:01:13]} 38. Nf3 {[%clk 0:00:07]}  Nxh3 {[%clk 0:01:10]} 39. Nxh4 {[%clk 0:00:06]}  Rh8 {[%clk 0:01:11]} 40. Nf3 {[%clk 0:00:06]}  Nf4 {[%clk 0:01:11]} 41. Bd2 {[%clk 0:00:04]}  Rh1+ {[%clk 0:01:10]} 0-1


[Site "https://www.chess.com"]

[Event "Titled Tuesday Blitz May 23 Early 2023"]
[White "Manukyan, Sargis A."]
[Black "Zhigalko, Sergei"]
[WhiteFideId "13303970"]
[BlackFideId "13502956"]
[WhiteElo "2187"]
[BlackElo "2626"]
[Result "1-0"]
[Round "02"]
[TimeControl "180+2"]
[Date "2023.05.23"]
[WhiteClock "0:00:08"]
[BlackClock "0:00:00"]

1. d4 {[%clk 0:03:00]}  d5 {[%clk 0:03:00]} 2. c4 {[%clk 0:03:01]}  e6 {[%clk 0:03:00]} 3. Nc3 {[%clk 0:03:01]}  c6 {[%clk 0:03:00]} 4. e3 {[%clk 0:03:01]}  Bd6 {[%clk 0:03:00]} 5. Nf3 {[%clk 0:03:02]}  f5 {[%clk 0:03:00]} 6. Bd3 {[%clk 0:03:01]}  Nf6 {[%clk 0:03:01]} 7. O-O {[%clk 0:03:01]}  O-O {[%clk 0:02:59]} 8. Ne5 {[%clk 0:03:01]}  b6 {[%clk 0:02:54]} 9. f4 {[%clk 0:03:00]}  Bb7 {[%clk 0:02:54]} 10. b3 {[%clk 0:02:59]}  Nbd7 {[%clk 0:02:53]} 11. Qe2 {[%clk 0:02:57]}  Ne4 {[%clk 0:02:49]} 12. Nxe4 {[%clk 0:02:55]}  fxe4 {[%clk 0:02:47]} 13. Bc2 {[%clk 0:02:56]}  Nxe5 {[%clk 0:02:43]} 14. fxe5 {[%clk 0:02:57]}  Rxf1+ {[%clk 0:02:41]} 15. Qxf1 {[%clk 0:02:57]}  Bb4 {[%clk 0:02:32]} 16. Bb2 {[%clk 0:02:48]}  Qg5 {[%clk 0:02:31]} 17. Qe2 {[%clk 0:02:46]}  Rf8 {[%clk 0:02:29]} 18. Rf1 {[%clk 0:02:43]}  Rxf1+ {[%clk 0:02:24]} 19. Kxf1 {[%clk 0:02:43]}  Ba6 {[%clk 0:02:22]} 20. Bd1 {[%clk 0:02:18]}  Qh6 {[%clk 0:01:44]} 21. h3 {[%clk 0:01:59]}  Qh4 {[%clk 0:01:43]} 22. a3 {[%clk 0:01:48]}  Be7 {[%clk 0:01:23]} 23. Qg4 {[%clk 0:01:31]}  Qh6 {[%clk 0:01:19]} 24. Be2 {[%clk 0:01:24]}  Kf7 {[%clk 0:01:01]} 25. Qf4+ {[%clk 0:01:14]}  Kg6 {[%clk 0:00:47]} 26. Qg4+ {[%clk 0:01:00]}  Kf7 {[%clk 0:00:45]} 27. Qf4+ {[%clk 0:01:01]}  Qxf4+ {[%clk 0:00:38]} 28. exf4 {[%clk 0:01:01]}  g5 {[%clk 0:00:38]} 29. g3 {[%clk 0:00:45]}  gxf4 {[%clk 0:00:36]} 30. gxf4 {[%clk 0:00:46]}  Kg6 {[%clk 0:00:36]} 31. Kf2 {[%clk 0:00:35]}  h5 {[%clk 0:00:24]} 32. Ke3 {[%clk 0:00:34]}  Bf8 {[%clk 0:00:24]} 33. a4 {[%clk 0:00:32]}  Bh6 {[%clk 0:00:24]} 34. Ba3 {[%clk 0:00:24]}  Kf5 {[%clk 0:00:16]} 35. Bxh5 {[%clk 0:00:24]}  Bxf4+ {[%clk 0:00:17]} 36. Ke2 {[%clk 0:00:25]}  dxc4 {[%clk 0:00:15]} 37. Bg4+ {[%clk 0:00:22]}  Kg6 {[%clk 0:00:13]} 38. bxc4 {[%clk 0:00:13]}  Bxc4+ {[%clk 0:00:14]} 39. Kf2 {[%clk 0:00:13]}  e3+ {[%clk 0:00:13]} 40. Kf3 {[%clk 0:00:12]}  e2 {[%clk 0:00:10]} 41. Bb4 {[%clk 0:00:12]}  Bg5 {[%clk 0:00:04]} 42. Be1 {[%clk 0:00:09]}  c5 {[%clk 0:00:03]} 43. Ke4 {[%clk 0:00:06]}  Bd5+ {[%clk 0:00:02]} 44. Kd3 {[%clk 0:00:06]}  cxd4 {[%clk 0:00:02]} 45. Kxd4 {[%clk 0:00:07]}  Bc6 {[%clk 0:00:02]} 46. Bxe2 {[%clk 0:00:08]}  Bxa4 {[%clk 0:00:02]} 47. Bd3+ {[%clk 0:00:08]}  Kf7 {[%clk 0:00:02]} 48. h4 {[%clk 0:00:08]}  Be7 {[%clk 0:00:02]} 49. h5 {[%clk 0:00:08]}  Bc6 {[%clk 0:00:01]} 50. h6 {[%clk 0:00:08]}  Bc5+ {[%clk 0:00:01]} 51. Kc4 {[%clk 0:00:07]}  Be3 {[%clk 0:00:01]} 52. h7 {[%clk 0:00:07]}  Kg7 {[%clk 0:00:00]} 53. Bh4 {[%clk 0:00:08]} 1-0


[Site "https://www.chess.com"]

[Event "Titled Tuesday Blitz May 23 Early 2023"]
[White "Zakhartsov, Vladimir"]
[Black "Yaniuk, Volodymyr"]
[WhiteFideId "4145097"]
[BlackFideId "14133083"]
[WhiteElo "2495"]
[BlackElo "2141"]
[Result "1-0"]
[Round "02"]
[TimeControl "180+2"]
[Date "2023.05.23"]
[WhiteClock "0:00:41"]
[BlackClock "0:00:14"]

1. e4 {[%clk 0:02:55]}  e5 {[%clk 0:02:59]} 2. Nf3 {[%clk 0:02:55]}  Nc6 {[%clk 0:02:59]} 3. Nc3 {[%clk 0:02:55]}  Nf6 {[%clk 0:02:59]} 4. a3 {[%clk 0:02:56]}  Be7 {[%clk 0:02:58]} 5. d4 {[%clk 0:02:56]}  exd4 {[%clk 0:02:59]} 6. Nxd4 {[%clk 0:02:56]}  O-O {[%clk 0:02:58]} 7. Nxc6 {[%clk 0:02:57]}  bxc6 {[%clk 0:02:58]} 8. e5 {[%clk 0:02:57]}  Ne8 {[%clk 0:02:56]} 9. Bd3 {[%clk 0:02:58]}  d5 {[%clk 0:02:55]} 10. Qh5 {[%clk 0:02:50]}  g6 {[%clk 0:02:53]} 11. Qe2 {[%clk 0:02:50]}  c5 {[%clk 0:02:45]} 12. Bh6 {[%clk 0:02:47]}  c4 {[%clk 0:02:33]} 13. Bxc4 {[%clk 0:02:14]}  dxc4 {[%clk 0:02:24]} 14. Rd1 {[%clk 0:02:14]}  Bd7 {[%clk 0:02:16]} 15. Bxf8 {[%clk 0:02:15]}  Kxf8 {[%clk 0:02:15]} 16. O-O {[%clk 0:02:06]}  Qc8 {[%clk 0:02:14]} 17. Qxc4 {[%clk 0:02:04]}  Be6 {[%clk 0:02:07]} 18. Qf4 {[%clk 0:01:57]}  Rb8 {[%clk 0:02:02]} 19. Qc1 {[%clk 0:01:50]}  c5 {[%clk 0:02:00]} 20. b3 {[%clk 0:01:47]}  Qc6 {[%clk 0:01:49]} 21. Rfe1 {[%clk 0:01:44]}  Kg7 {[%clk 0:01:27]} 22. Ne4 {[%clk 0:01:43]}  h6 {[%clk 0:01:27]} 23. Qf4 {[%clk 0:01:31]}  c4 {[%clk 0:01:22]} 24. b4 {[%clk 0:01:31]}  a5 {[%clk 0:01:19]} 25. c3 {[%clk 0:01:31]}  axb4 {[%clk 0:01:19]} 26. axb4 {[%clk 0:01:31]}  Nc7 {[%clk 0:01:13]} 27. Nf6 {[%clk 0:01:17]}  Nb5 {[%clk 0:00:59]} 28. Re3 {[%clk 0:01:14]}  g5 {[%clk 0:00:39]} 29. Qg3 {[%clk 0:01:07]}  Nc7 {[%clk 0:00:26]} 30. h4 {[%clk 0:01:02]}  Nd5 {[%clk 0:00:20]} 31. hxg5 {[%clk 0:00:41]}  Nxe3 {[%clk 0:00:18]} 32. gxh6+ {[%clk 0:00:41]}  Kh8 {[%clk 0:00:14]} 33. Qg7# {[%clk 0:00:41]} 1-0


[Site "https://www.chess.com"]

[Event "Titled Tuesday Blitz May 23 Early 2023"]
[White "Sjugirov, Sanan"]
[Black "Kiremitciyan, Ari"]
[WhiteFideId "4189302"]
[BlackFideId "6373445"]
[WhiteElo "2569"]
[BlackElo "2181"]
[Result "1-0"]
[Round "02"]
[TimeControl "180+2"]
[Date "2023.05.23"]
[WhiteClock "0:00:42"]
[BlackClock "0:00:00"]

1. d4 {[%clk 0:03:00]}  Nf6 {[%clk 0:02:59]} 2. c4 {[%clk 0:03:01]}  e6 {[%clk 0:03:00]} 3. e3 {[%clk 0:03:02]}  d5 {[%clk 0:03:00]} 4. Nc3 {[%clk 0:03:02]}  c5 {[%clk 0:03:00]} 5. Nf3 {[%clk 0:03:02]}  a6 {[%clk 0:03:01]} 6. cxd5 {[%clk 0:03:01]}  exd5 {[%clk 0:03:01]} 7. Bd3 {[%clk 0:03:02]}  Nc6 {[%clk 0:03:00]} 8. O-O {[%clk 0:03:02]}  c4 {[%clk 0:02:56]} 9. Bc2 {[%clk 0:03:02]}  b5 {[%clk 0:02:57]} 10. Ne5 {[%clk 0:03:02]}  Qc7 {[%clk 0:02:47]} 11. f4 {[%clk 0:03:02]}  Bd6 {[%clk 0:02:43]} 12. Qf3 {[%clk 0:03:01]}  Ne7 {[%clk 0:02:40]} 13. g4 {[%clk 0:02:58]}  b4 {[%clk 0:02:27]} 14. Ne2 {[%clk 0:02:52]}  Bxe5 {[%clk 0:01:53]} 15. fxe5 {[%clk 0:02:47]}  Bxg4 {[%clk 0:01:53]} 16. Qf2 {[%clk 0:02:01]}  Bxe2 {[%clk 0:01:49]} 17. Qxe2 {[%clk 0:02:02]}  Ne4 {[%clk 0:01:33]} 18. Qf3 {[%clk 0:02:01]}  O-O {[%clk 0:01:31]} 19. Bxe4 {[%clk 0:02:01]}  dxe4 {[%clk 0:01:32]} 20. Qxe4 {[%clk 0:02:02]}  Rae8 {[%clk 0:00:57]} 21. Bd2 {[%clk 0:02:00]}  a5 {[%clk 0:00:57]} 22. Rac1 {[%clk 0:01:59]}  Ng6 {[%clk 0:00:53]} 23. Qd5 {[%clk 0:01:54]}  Rc8 {[%clk 0:00:50]} 24. a3 {[%clk 0:01:47]}  Rfd8 {[%clk 0:00:32]} 25. Qg2 {[%clk 0:01:33]}  Qb6 {[%clk 0:00:20]} 26. axb4 {[%clk 0:01:32]}  axb4 {[%clk 0:00:20]} 27. Be1 {[%clk 0:01:14]}  Rc7 {[%clk 0:00:11]} 28. Qf3 {[%clk 0:01:09]}  Rdc8 {[%clk 0:00:10]} 29. Bg3 {[%clk 0:01:06]}  Rd7 {[%clk 0:00:06]} 30. h4 {[%clk 0:00:55]}  c3 {[%clk 0:00:04]} 31. bxc3 {[%clk 0:00:55]}  bxc3 {[%clk 0:00:05]} 32. h5 {[%clk 0:00:54]}  Nf8 {[%clk 0:00:04]} 33. Rc2 {[%clk 0:00:49]}  Qb3 {[%clk 0:00:03]} 34. Rfc1 {[%clk 0:00:47]}  Ra7 {[%clk 0:00:01]} 35. h6 {[%clk 0:00:42]}  gxh6 {[%clk 0:00:00]} 36. Qg4+ {[%clk 0:00:42]} 1-0


[Site "https://www.chess.com"]

[Event "Titled Tuesday Blitz May 23 Early 2023"]
[White "Narayanan, Srinath"]
[Black "Szabo, Marcell"]
[WhiteFideId "5018420"]
[BlackFideId "2072033"]
[WhiteElo "2438"]
[BlackElo "1795"]
[Result "1-0"]
[Round "02"]
[TimeControl "180+2"]
[Date "2023.05.23"]
[WhiteClock "0:00:32"]
[BlackClock "0:00:18"]

1. Nf3 {[%clk 0:03:00]}  Nf6 {[%clk 0:03:00]} 2. c4 {[%clk 0:03:00]}  d5 {[%clk 0:03:00]} 3. e3 {[%clk 0:03:00]}  g6 {[%clk 0:03:00]} 4. cxd5 {[%clk 0:02:59]}  Nxd5 {[%clk 0:02:59]} 5. d4 {[%clk 0:02:59]}  Bg7 {[%clk 0:02:59]} 6. Nc3 {[%clk 0:02:59]}  O-O {[%clk 0:02:59]} 7. Bc4 {[%clk 0:02:59]}  Nxc3 {[%clk 0:02:59]} 8. bxc3 {[%clk 0:02:59]}  c5 {[%clk 0:02:59]} 9. O-O {[%clk 0:02:58]}  cxd4 {[%clk 0:03:00]} 10. cxd4 {[%clk 0:02:57]}  Nc6 {[%clk 0:02:58]} 11. Ba3 {[%clk 0:02:54]}  Qa5 {[%clk 0:02:40]} 12. Qb3 {[%clk 0:02:52]}  Qh5 {[%clk 0:02:34]} 13. Be2 {[%clk 0:02:32]}  Be6 {[%clk 0:02:31]} 14. Qxb7 {[%clk 0:02:25]}  Bd5 {[%clk 0:02:32]} 15. Qa6 {[%clk 0:02:14]}  Rfb8 {[%clk 0:02:21]} 16. Rac1 {[%clk 0:01:39]}  Rb6 {[%clk 0:02:18]} 17. Qd3 {[%clk 0:01:40]}  Bxa2 {[%clk 0:02:08]} 18. Ne5 {[%clk 0:01:38]}  Nxe5 {[%clk 0:02:07]} 19. Qe4 {[%clk 0:01:32]}  Qxe2 {[%clk 0:01:55]} 20. Qxa8+ {[%clk 0:01:31]}  Bf8 {[%clk 0:01:53]} 21. dxe5 {[%clk 0:01:28]}  Kg7 {[%clk 0:01:45]} 22. Qxa7 {[%clk 0:01:26]}  Re6 {[%clk 0:01:39]} 23. Qd4 {[%clk 0:01:24]}  h5 {[%clk 0:01:31]} 24. h3 {[%clk 0:01:17]}  Kh7 {[%clk 0:01:30]} 25. Qf4 {[%clk 0:01:16]}  Bg7 {[%clk 0:01:27]} 26. Qxf7 {[%clk 0:01:12]}  Rxe5 {[%clk 0:01:27]} 27. Qf4 {[%clk 0:01:05]}  Rf5 {[%clk 0:01:22]} 28. Qe4 {[%clk 0:01:04]}  Bd5 {[%clk 0:01:20]} 29. Qxe7 {[%clk 0:01:02]}  Kh6 {[%clk 0:00:57]} 30. Rce1 {[%clk 0:00:58]}  Qa2 {[%clk 0:00:27]} 31. Bd6 {[%clk 0:00:41]}  Bf8 {[%clk 0:00:23]} 32. Qd8 {[%clk 0:00:37]}  Bxd6 {[%clk 0:00:20]} 33. Qxd6 {[%clk 0:00:38]}  Rg5 {[%clk 0:00:20]} 34. e4 {[%clk 0:00:37]}  Ba8 {[%clk 0:00:18]} 35. Ra1 {[%clk 0:00:34]}  Qg8 {[%clk 0:00:17]} 36. Qf4 {[%clk 0:00:33]}  Qe8 {[%clk 0:00:16]} 37. h4 {[%clk 0:00:33]}  Qxe4 {[%clk 0:00:16]} 38. hxg5+ {[%clk 0:00:32]}  Kh7 {[%clk 0:00:17]} 39. Ra7+ {[%clk 0:00:32]}  Kh8 {[%clk 0:00:18]} 40. Qf8# {[%clk 0:00:32]} 1-0


[Site "https://www.chess.com"]

[Event "Titled Tuesday Blitz May 23 Early 2023"]
[White "HamedWafa4"]
[Black "Drygalov, Andrey"]
[BlackFideId "24171735"]
[WhiteElo "2598"]
[BlackElo "2466"]
[Result "0-1"]
[Round "02"]
[TimeControl "180+2"]
[Date "2023.05.23"]
[WhiteClock "0:00:00"]
[BlackClock "0:00:16"]

1. e4 {[%clk 0:03:00]}  c5 {[%clk 0:02:59]} 2. Nf3 {[%clk 0:02:59]}  d6 {[%clk 0:03:00]} 3. Bb5+ {[%clk 0:02:57]}  Nd7 {[%clk 0:03:00]} 4. c4 {[%clk 0:02:41]}  a6 {[%clk 0:02:58]} 5. Ba4 {[%clk 0:02:41]}  Nf6 {[%clk 0:02:58]} 6. O-O {[%clk 0:02:38]}  e5 {[%clk 0:02:50]} 7. d3 {[%clk 0:02:36]}  Be7 {[%clk 0:02:50]} 8. Nc3 {[%clk 0:02:28]}  O-O {[%clk 0:02:49]} 9. a3 {[%clk 0:02:27]}  Nb6 {[%clk 0:02:37]} 10. Bc2 {[%clk 0:02:19]}  Bg4 {[%clk 0:02:35]} 11. h3 {[%clk 0:02:18]}  Bh5 {[%clk 0:02:35]} 12. b4 {[%clk 0:02:08]}  Nbd7 {[%clk 0:02:30]} 13. Rb1 {[%clk 0:01:54]}  b6 {[%clk 0:02:21]} 14. Qe2 {[%clk 0:01:29]}  cxb4 {[%clk 0:02:05]} 15. axb4 {[%clk 0:01:27]}  a5 {[%clk 0:02:05]} 16. g4 {[%clk 0:01:09]}  Bg6 {[%clk 0:02:00]} 17. b5 {[%clk 0:01:06]}  Nc5 {[%clk 0:01:57]} 18. Be3 {[%clk 0:01:04]}  Qd7 {[%clk 0:01:50]} 19. Bxc5 {[%clk 0:01:01]}  bxc5 {[%clk 0:01:46]} 20. Ba4 {[%clk 0:00:56]}  Rab8 {[%clk 0:01:23]} 21. Ne1 {[%clk 0:00:44]}  Bd8 {[%clk 0:01:21]} 22. Nc2 {[%clk 0:00:42]}  h5 {[%clk 0:01:20]} 23. f3 {[%clk 0:00:32]}  Nh7 {[%clk 0:01:08]} 24. Nd5 {[%clk 0:00:26]}  Ng5 {[%clk 0:01:08]} 25. Kg2 {[%clk 0:00:24]}  Ne6 {[%clk 0:01:04]} 26. Nce3 {[%clk 0:00:20]}  Nd4 {[%clk 0:01:01]} 27. Qd2 {[%clk 0:00:18]}  Bg5 {[%clk 0:01:01]} 28. Qe1 {[%clk 0:00:16]}  Qd8 {[%clk 0:00:58]} 29. Nf5 {[%clk 0:00:16]}  Bxf5 {[%clk 0:00:57]} 30. exf5 {[%clk 0:00:14]}  g6 {[%clk 0:00:50]} 31. h4 {[%clk 0:00:08]}  Bxh4 {[%clk 0:00:50]} 32. Qe4 {[%clk 0:00:07]}  gxf5 {[%clk 0:00:45]} 33. gxf5 {[%clk 0:00:08]}  Qg5+ {[%clk 0:00:45]} 34. Kh1 {[%clk 0:00:09]}  Nxf5 {[%clk 0:00:45]} 35. Rg1 {[%clk 0:00:08]}  Ng3+ {[%clk 0:00:45]} 36. Kh2 {[%clk 0:00:08]}  f5 {[%clk 0:00:44]} 37. Qe3 {[%clk 0:00:06]}  f4 {[%clk 0:00:43]} 38. Qf2 {[%clk 0:00:02]}  Kh7 {[%clk 0:00:41]} 39. Qg2 {[%clk 0:00:03]}  Qg6 {[%clk 0:00:18]} 40. Qh3 {[%clk 0:00:03]}  Bd8 {[%clk 0:00:19]} 41. b6 {[%clk 0:00:02]}  Qxd3 {[%clk 0:00:17]} 42. Qd7+ {[%clk 0:00:00]}  Kh8 {[%clk 0:00:16]} 0-1


[Site "https://www.chess.com"]